fUST/lending_fUST_20260308
["ID","MTS","AMOUNT","RATE_DAILY","PERIOD"]
[407982803,1772966628958,5000.0,2.001e-05,2]
[407982804,1772966651412,5000.0,2.001e-05,2]
[407982805,1772966673773,5000.0,2.001e-05,2]
[407982809,1772966695975,5000.0,2.001e-05,2]
[407982817,1772966717991,5000.0,2.001e-05,2]
[407982818,1772966739536,5000.0,2.001e-05,2]
[407982819,1772966761154,1425.12472731,2.001e-05,2]
[407982826,1772966818363,827.3,2.001e-05,2]
[407982832,1772966949945,727.0,0.000114,120]
[407982928,1772967032840,-241.1446297,2.084e-05,2]
[407982930,1772967032849,-151.99,2.1e-05,2]
[407982932,1772967032859,-151.99,2.1e-05,2]
[407982934,1772967032869,-151.99,2.1e-05,2]
[407982936,1772967032878,-151.99,2.1e-05,2]
[407982938,1772967032887,-151.99,2.2e-05,2]
[407982940,1772967032896,-151.99,2.2e-05,2]
[407982942,1772967032906,-151.99,2.2e-05,2]
[407982944,1772967032915,-300.0,3.832e-05,2]
[407982946,1772967032924,-500.0,3.833e-05,2]
[407982948,1772967032933,-500.0,3.833e-05,2]
[407982950,1772967032942,-500.0,3.833e-05,2]
[407982952,1772967032951,-500.0,3.833e-05,2]
[407982954,1772967032960,-181.98179155,3.833e-05,2]
[407983059,1772967038481,-318.01820845,3.833e-05,2]
[407983061,1772967038491,-500.0,3.833e-05,2]
[407983063,1772967038500,-500.0,3.833e-05,2]
[407983065,1772967038510,-765086.90706913,3.86e-05,2]
[407983071,1772967038554,-2957.94987597,3.86e-05,2]
[407983074,1772967038565,-24514.72309898,3.86e-05,2]
[407983311,1772967040946,-469.07870949,3.86e-05,2]
[407983318,1772967040999,-752.23301139,3.86e-05,2]
[407983442,1772967043613,-612.33185542,3.821e-05,2]
[407983443,1772967043625,-55.92215218,3.821e-05,2]
[407983444,1772967043636,-1924.17346297,3.86e-05,2]
[407983470,1772967046348,-6323.6046171,3.86e-05,2]
[407983471,1772967046508,-60119.61957488,3.86e-05,2]
[407983473,1772967186949,252.0,2e-05,2]
[407983627,1772968237610,-1324.44791251,2.553e-05,2]
[407983629,1772968237627,-3675.55208749,2.553e-05,2]
[407983631,1772968237637,-170.5,2.579e-05,2]
[407983633,1772968237647,-245.2820848,2.592e-05,2]
[407983635,1772968237656,-5000.0,2.605e-05,2]
[407983638,1772968237670,-1200.0,2.629e-05,2]
[407983640,1772968237679,-300.0,2.63e-05,2]
[407983641,1772968237689,-300.0,2.63e-05,2]
[407983643,1772968237699,-300.0,2.63e-05,2]
[407983645,1772968237709,-300.0,2.63e-05,2]
[407983647,1772968237719,-10000.0,2.74e-05,2]
[407983649,1772968237728,-1680.0,2.892e-05,2]
[407983651,1772968237738,-420.0,2.893e-05,2]
[407983653,1772968237748,-183.066134,3.031e-05,2]
[407983655,1772968237757,-1825.0,3.181e-05,2]
[407983658,1772968237768,-587.0,3.182e-05,2]
[407983660,1772968237778,-183.066134,3.35e-05,2]
[407983662,1772968237788,-823.0,3.501e-05,2]
[407983664,1772968237797,-500.0,3.633e-05,2]
[407983666,1772968237807,-641.66334509,3.633e-05,2]
[407983668,1772968237815,-500.0,3.633e-05,2]
[407983670,1772968237825,-500.0,3.633e-05,2]
[407983672,1772968237834,-500.0,3.633e-05,2]
[407983674,1772968237843,-500.0,3.633e-05,2]
[407983676,1772968237853,-500.0,3.633e-05,2]
[407983678,1772968237862,-500.05039856,3.633e-05,2]
[407983680,1772968237871,-500.0,3.633e-05,2]
[407983682,1772968237880,-500.0,3.633e-05,2]
[407983684,1772968237889,-500.0,3.633e-05,2]
[407983686,1772968237898,-500.0,3.633e-05,2]
[407983688,1772968237907,-501.27527013,3.633e-05,2]
[407983690,1772968237916,-500.0,3.633e-05,2]
[407983692,1772968237925,-480.86587284,3.633e-05,2]
[407983694,1772968237934,-500.0,3.633e-05,2]
[407983696,1772968237943,-500.0,3.633e-05,2]
[407983698,1772968237952,-500.0,3.633e-05,2]
[407983700,1772968237961,-500.0,3.633e-05,2]
[407983738,1772968238268,-500.0,3.633e-05,2]
[407983741,1772968238291,-500.0,3.633e-05,2]
[407983743,1772968238300,-500.0,3.633e-05,2]
[407983745,1772968238310,-13031.92618514,3.66e-05,2]
[407983748,1772968238322,-1788.67085284,3.66e-05,2]
[407983750,1772968238335,-683.0,3.66e-05,2]
[407983784,1772968238639,-1718.96187245,2.527e-05,2]
[407983786,1772968238648,-1661280.18169395,3.66e-05,2]
[407983788,1772968238661,-10653.1402446,3.66e-05,2]
[407983790,1772968238676,-6302.42641611,3.66e-05,2]
[407983793,1772968238691,-4248.32795475,3.66e-05,2]
[407983795,1772968238702,-5521.03616514,3.66e-05,2]
[407984007,1772968241063,-1104.62856212,3.623e-05,2]
[407984236,1772968246652,-27206.19033451,3.623e-05,2]
[407984274,1772969431553,-3169.1363388,3.012e-05,2]
[407984277,1772969431565,-5000.0,3.042e-05,2]
[407984279,1772969431574,-245.36182938,3.089e-05,2]
[407984281,1772969431583,-300.0,3.172e-05,2]
[407984283,1772969431592,-1200.0,3.172e-05,2]
[407984285,1772969431601,-500.0,3.173e-05,2]
[407984286,1772969431610,-500.0,3.173e-05,2]
[407984288,1772969431619,-500.0,3.173e-05,2]
[407984290,1772969431629,-500.0,3.173e-05,2]
[407984292,1772969431639,-500.0,3.173e-05,2]
[407984294,1772969431648,-500.0,3.173e-05,2]
[407984296,1772969431656,-500.0,3.173e-05,2]
[407984298,1772969431665,-500.0,3.173e-05,2]
[407984300,1772969431674,-500.0,3.173e-05,2]
[407984302,1772969431683,-500.0,3.173e-05,2]
[407984304,1772969431692,-500.0,3.173e-05,2]
[407984306,1772969431701,-500.0,3.173e-05,2]
[407984308,1772969431710,-500.0,3.173e-05,2]
[407984310,1772969431719,-500.0,3.173e-05,2]
[407984312,1772969431728,-500.0,3.173e-05,2]
[407984314,1772969431737,-500.0,3.173e-05,2]
[407984316,1772969431746,-500.0,3.173e-05,2]
[407984318,1772969431756,-500.0,3.173e-05,2]
[407984320,1772969431765,-500.0,3.173e-05,2]
[407984322,1772969431774,-27417.9025373,3.2e-05,2]
[407984743,1772969440127,-956.89130358,3.2e-05,2]
[407984950,1772969445722,-5000.0,3.168e-05,2]
[407984951,1772969445731,-3025.17483751,3.2e-05,2]
[407984952,1772969445883,-58126.66431842,3.2e-05,2]
[407985009,1772970631742,-890.51160224,2.155e-05,2]
[407985011,1772970631751,-854.01679552,2.177e-05,2]
[407985122,1772970637941,-1289.70641936,2.177e-05,2]
[407985123,1772970637952,-420.15945328,2.177e-05,2]
[407985125,1772970637962,-2635.04,2.199e-05,2]
[407985127,1772970637971,-245.50059759,2.301e-05,2]
[407985129,1772970637980,-183.066134,2.358e-05,2]
[407985131,1772970637989,-200.0,3.135e-05,2]
[407985133,1772970637998,-1200.0,3.17e-05,2]
[407985135,1772970638007,-139.55073188,3.171e-05,2]
[407985294,1772970640254,-160.44926812,3.171e-05,2]
[407985295,1772970640263,-300.0,3.171e-05,2]
[407985296,1772970640273,-6.65065631,3.171e-05,2]
[407985322,1772970645944,-1563.14060355,2.155e-05,2]
[407985323,1772970645954,-293.34934369,3.171e-05,2]
[407985324,1772970645963,-500.0,3.173e-05,2]
[407985325,1772970645974,-26128.84038192,3.2e-05,2]
[407985326,1772970645985,-3232.90007557,3.2e-05,2]
[407985327,1772970646050,-76515.21527579,3.2e-05,2]
[407985333,1772971498324,-151.0,0.000115,120]
[407985368,1772971831923,-612.33185542,3.135e-05,2]
[407985370,1772971831933,-300.0,3.167e-05,2]
[407985372,1772971831943,-300.0,3.167e-05,2]
[407985374,1772971831952,-300.0,3.167e-05,2]
[407985376,1772971831961,-1151.0,3.167e-05,2]
[407985378,1772971831970,-245.70025749,3.168e-05,2]
[407985380,1772971831980,-14634.24609022,3.168e-05,2]
[407985384,1772971831991,-4542.85406032,3.168e-05,2]
[407985387,1772971832011,-405.80921108,3.168e-05,2]
[407985436,1772971838078,-572.260004,3.168e-05,2]
[407985442,1772971838134,-1121.9573916,3.168e-05,2]
[407985676,1772971840414,-28186.9690012,3.168e-05,2]
[407985806,1772971843205,-5582.34447543,3.168e-05,2]
[407985815,1772971846293,-1872.93,3.168e-05,2]
[407985816,1772971846304,-14573.55864179,3.168e-05,2]
[407985817,1772971846315,-633.09,3.168e-05,2]
[407985818,1772971936737,-200.0,3.074e-05,2]
[407985896,1772972605906,-2000.0,2.808e-05,2]
[407985897,1772972607978,-2000.0,2.808e-05,2]
[407985898,1772972608406,-1000.0,2.808e-05,2]
[407985899,1772972608427,-240.78625234,2.822e-05,2]
[407985900,1772972608447,-759.21374766,2.836e-05,2]
[407985901,1772972608932,-2000.0,2.836e-05,2]
[407985902,1772972610274,-156.52951379,2.836e-05,2]
[407985903,1772972610295,-300.0,2.864e-05,2]
[407985904,1772972610319,-1543.47048621,2.865e-05,2]
[407985905,1772972610355,-2000.0,2.865e-05,2]
[407985906,1772972610392,-1456.52951379,2.865e-05,2]
[407985907,1772972610412,-300.0,2.952e-05,2]
[407985908,1772972610432,-243.47048621,3.15e-05,2]
[407985909,1772972610463,-176.52951379,3.15e-05,2]
[407985910,1772972610485,-1823.47048621,3.166e-05,2]
[407985911,1772972610868,-2000.0,3.166e-05,2]
[407985912,1772972611195,-1851.91057999,3.166e-05,2]
[407985913,1772972611215,-148.08942001,3.167e-05,2]
[407985914,1772972611653,-2000.0,3.167e-05,2]
[407985915,1772972611990,-646.37449189,3.167e-05,2]
[407985916,1772972612012,-1353.62550811,3.167e-05,2]
[407985917,1772972612435,-2000.0,3.167e-05,2]
[407985918,1772972612874,-500.08549739,3.167e-05,2]
[407985919,1772972612895,-1499.91450261,3.168e-05,2]
[407985920,1772972613350,-2000.0,3.135e-05,2]
[407985921,1772972613565,-2000.0,3.135e-05,2]
[407985922,1772972614080,-1000.0,3.135e-05,2]
[407985923,1772972614101,-1000.0,3.168e-05,2]
[407985924,1772972614527,-2000.0,3.168e-05,2]
[407985925,1772972614986,-2000.0,3.168e-05,2]
[407985926,1772972616001,-2000.0,3.168e-05,2]
[407985927,1772972616439,-2000.0,3.168e-05,2]
[407985928,1772972616692,-2000.0,3.168e-05,2]
[407985929,1772972617025,-2000.0,3.168e-05,2]
[407985930,1772972617480,-2000.0,3.168e-05,2]
[407985931,1772972617860,-2000.0,3.168e-05,2]
[407985932,1772972618202,-2000.0,3.168e-05,2]
[407985933,1772972618673,-2000.0,3.168e-05,2]
[407985934,1772972619870,-1574.21071642,3.168e-05,2]
[407985935,1772972619892,-425.78928358,3.17e-05,2]
[407985936,1772972620842,-2000.0,3.17e-05,2]
[407985937,1772972620865,-401.21071642,3.17e-05,2]
[407985938,1772972620885,-500.0,3.173e-05,2]
[407985939,1772972620904,-500.0,3.173e-05,2]
[407985940,1772972620924,-500.0,3.173e-05,2]
[407985941,1772972620943,-98.78928358,3.173e-05,2]
[407985942,1772972622892,-401.21071642,3.173e-05,2]
[407985943,1772972622912,-500.0,3.173e-05,2]
[407985944,1772972622931,-500.0,3.173e-05,2]
[407985945,1772972622954,-500.0,3.173e-05,2]
[407985946,1772972622978,-98.78928358,3.173e-05,2]
[407985947,1772972623229,-401.21071642,3.173e-05,2]
[407985948,1772972623252,-500.0,3.173e-05,2]
[407985949,1772972623275,-500.0,3.173e-05,2]
[407985950,1772972623295,-500.0,3.173e-05,2]
[407985951,1772972623320,-98.78928358,3.173e-05,2]
[407985952,1772972623617,-401.21071642,3.173e-05,2]
[407985953,1772972623636,-500.0,3.173e-05,2]
[407985954,1772972623655,-500.0,3.173e-05,2]
[407985955,1772972623675,-500.0,3.173e-05,2]
[407985956,1772972623694,-98.78928358,3.173e-05,2]
[407985957,1772972625681,-305.9888791,3.173e-05,2]
[407985958,1772972625702,-500.0,3.173e-05,2]
[407985959,1772972625722,-500.0,3.173e-05,2]
[407985960,1772972625742,-500.0,3.173e-05,2]
[407985961,1772972625762,-194.0111209,3.173e-05,2]
[407985962,1772972638342,-270.8538078,3.11e-05,2]
[407985963,1772972638366,-1729.1461922,3.141e-05,2]
[407985964,1772972666765,-2000.0,3.141e-05,2]
[407985965,1772972667865,-1270.8538078,3.141e-05,2]
[407985966,1772972667889,-305.9888791,3.173e-05,2]
[407985967,1772972667910,-423.1573131,3.173e-05,2]
[407985968,1772972668305,-76.8426869,3.173e-05,2]
[407985969,1772972668326,-500.0,3.173e-05,2]
[407985970,1772972668349,-500.0,3.173e-05,2]
[407985971,1772972668371,-500.0,3.173e-05,2]
[407985972,1772972668391,-260.14021253,3.173e-05,2]
[407985973,1772972668415,-163.01710057,3.173e-05,2]
[407985974,1772972668647,-336.98289943,3.173e-05,2]
[407985975,1772972668668,-500.0,3.173e-05,2]
[407985976,1772972668690,-1163.01710057,3.2e-05,2]
[407985977,1772972668961,-2000.0,3.2e-05,2]
[407985978,1772972669265,-2000.0,3.2e-05,2]
[407985979,1772972669721,-2000.0,3.2e-05,2]
[407985980,1772972670020,-2000.0,3.2e-05,2]
[407985981,1772972670347,-2000.0,3.2e-05,2]
[407985982,1772972670803,-2000.0,3.2e-05,2]
[407985983,1772972671238,-2000.0,3.2e-05,2]
[407985984,1772972671567,-2000.0,3.2e-05,2]
[407985985,1772972673216,-2000.0,3.2e-05,2]
[407985986,1772972673567,-2000.0,3.2e-05,2]
[407985987,1772972674025,-2000.0,3.2e-05,2]
[407985988,1772972674393,-2000.0,3.2e-05,2]
[407985989,1772972674846,-2000.0,3.2e-05,2]
[407985990,1772972675610,-2000.0,3.2e-05,2]
[407985991,1772972675645,-2000.0,3.2e-05,2]
[407985992,1772972675912,-2000.0,3.2e-05,2]
[407985993,1772972676236,-2000.0,3.2e-05,2]
[407985994,1772972676665,-2000.0,3.2e-05,2]
[407985995,1772972677135,-2000.0,3.2e-05,2]
[407985996,1772972677615,-2000.0,3.2e-05,2]
[407985997,1772972677800,-2000.0,3.2e-05,2]
[407985998,1772972678368,-2000.0,3.2e-05,2]
[407985999,1772972678513,-2000.0,3.2e-05,2]
[407986000,1772972678843,-2000.0,3.2e-05,2]
[407986001,1772972679191,-2000.0,3.2e-05,2]
[407986002,1772972679634,-2000.0,3.2e-05,2]
[407986003,1772972680080,-2000.0,3.2e-05,2]
[407986004,1772972681447,-2000.0,3.2e-05,2]
[407986005,1772972682252,-2000.0,3.2e-05,2]
[407986006,1772972682701,-2000.0,3.2e-05,2]
[407986007,1772972684718,-2000.0,3.2e-05,2]
[407986008,1772972686521,-2000.0,3.2e-05,2]
[407986009,1772972687526,-2000.0,3.2e-05,2]
[407986010,1772972692208,-500.0,3.2e-05,2]
[407986011,1772972791691,-2000.0,3.136e-05,2]
[407986012,1772972793012,-2000.0,3.136e-05,2]
[407986013,1772972793595,-1000.0,3.136e-05,2]
[407986014,1772972793617,-1000.0,3.168e-05,2]
[407986015,1772972793827,-2000.0,3.168e-05,2]
[407986016,1772972794212,-2000.0,3.168e-05,2]
[407986017,1772972794514,-500.0,3.173e-05,2]
[407986018,1772972794537,-500.0,3.173e-05,2]
[407986019,1772972794559,-500.0,3.173e-05,2]
[407986020,1772972794581,-500.0,3.173e-05,2]
[407986021,1772972795425,-500.0,3.173e-05,2]
[407986022,1772972795447,-500.0,3.173e-05,2]
[407986023,1772972795468,-500.0,3.173e-05,2]
[407986024,1772972795489,-171.11159423,3.173e-05,2]
[407986025,1772972795509,-328.88840577,3.173e-05,2]
[407986026,1772972795539,-171.11159423,3.173e-05,2]
[407986027,1772972795560,-500.0,3.173e-05,2]
[407986028,1772972795584,-500.0,3.173e-05,2]
[407986029,1772972795605,-500.0,3.173e-05,2]
[407986030,1772972795625,-328.88840577,3.173e-05,2]
[407986031,1772972795894,-171.11159423,3.173e-05,2]
[407986032,1772972795916,-500.0,3.173e-05,2]
[407986033,1772972795937,-500.0,3.173e-05,2]
[407986034,1772972795957,-500.0,3.173e-05,2]
[407986035,1772972795977,-328.88840577,3.173e-05,2]
[407986036,1772972796374,-171.11159423,3.173e-05,2]
[407986037,1772972796400,-300.0,3.199e-05,2]
[407986038,1772972796424,-1528.88840577,3.2e-05,2]
[407986039,1772972796720,-2000.0,3.2e-05,2]
[407986040,1772972797103,-2000.0,3.2e-05,2]
[407986041,1772972797534,-2000.0,3.2e-05,2]
[407986042,1772972797862,-2000.0,3.2e-05,2]
[407986043,1772972798312,-2000.0,3.2e-05,2]
[407986044,1772972798635,-2000.0,3.2e-05,2]
[407986045,1772972798982,-2000.0,3.2e-05,2]
[407986046,1772972799333,-2000.0,3.2e-05,2]
[407986047,1772972799786,-2000.0,3.2e-05,2]
[407986048,1772972801466,-2000.0,3.2e-05,2]
[407986049,1772972801908,-2000.0,3.2e-05,2]
[407986050,1772972802223,-2000.0,3.2e-05,2]
[407986051,1772972802664,-2000.0,3.2e-05,2]
[407986052,1772972802984,-2000.0,3.2e-05,2]
[407986053,1772972803311,-2000.0,3.2e-05,2]
[407986054,1772972803984,-2000.0,3.2e-05,2]
[407986055,1772972804243,-2000.0,3.2e-05,2]
[407986056,1772972806383,-2000.0,3.2e-05,2]
[407986057,1772972817177,-2000.0,3.136e-05,2]
[407986058,1772972819028,-2000.0,3.136e-05,2]
[407986059,1772972820193,-1000.0,3.136e-05,2]
[407986060,1772972820217,-1000.0,3.168e-05,2]
[407986061,1772972823059,-2000.0,3.168e-05,2]
[407986062,1772972824333,-2000.0,3.168e-05,2]
[407986063,1772972825243,-500.0,3.173e-05,2]
[407986064,1772972825265,-300.0,3.199e-05,2]
[407986065,1772972825300,-1200.0,3.2e-05,2]
[407986066,1772972826220,-500.0,3.173e-05,2]
[407986067,1772972826243,-1500.0,3.2e-05,2]
[407986068,1772972828305,-500.0,3.173e-05,2]
[407986069,1772972828327,-500.0,3.173e-05,2]
[407986070,1772972828347,-500.0,3.173e-05,2]
[407986071,1772972828369,-500.0,3.2e-05,2]
[407986072,1772972830165,-2000.0,3.141e-05,2]
[407986073,1772972882255,-1600.0,3.079e-05,2]
[407986074,1772972910011,-3400.0,3.079e-05,2]
[407986075,1772972910037,-100.0,3.095e-05,2]
[407986076,1772973003194,176.48,2e-05,2]
[407986100,1772973032166,-5000.0,2.178e-05,2]
[407986101,1772973032176,-176.48,2.2e-05,2]
[407986102,1772973032185,-504.02130229,3.064e-05,2]
[407986136,1772973038310,-4495.97869771,3.064e-05,2]
[407986139,1772973038321,-152.56057289,3.095e-05,2]
[407986141,1772973038330,-500.0,3.173e-05,2]
[407986143,1772973038339,-500.0,3.173e-05,2]
[407986144,1772973038348,-500.0,3.173e-05,2]
[407986146,1772973038358,-500.0,3.173e-05,2]
[407986148,1772973038367,-500.0,3.173e-05,2]
[407986151,1772973038376,-500.0,3.173e-05,2]
[407986154,1772973038385,-500.0,3.173e-05,2]
[407986156,1772973038393,-580.05870777,3.173e-05,2]
[407986158,1772973038402,-500.0,3.173e-05,2]
[407986160,1772973038412,-500.0,3.173e-05,2]
[407986162,1772973038421,-500.0,3.173e-05,2]
[407986164,1772973038432,-9808.62840078,3.179e-05,2]
[407986411,1772973040738,-6980.6,3.168e-05,2]
[407986413,1772973040750,-7653.67623725,3.168e-05,2]
[407986414,1772973040759,-726.47815807,3.179e-05,2]
[407986601,1772973042669,-130.17101418,3.179e-05,2]
[407986603,1772973042681,-546.66203514,3.179e-05,2]
[407986729,1772973046365,-4361.54203922,3.147e-05,2]
[407986730,1772973046379,-354.41718542,3.147e-05,2]
[407986731,1772973046388,-2634.99512103,3.179e-05,2]
[407986732,1772973046398,-1253.46627184,3.2e-05,2]
[407986733,1772973046421,-880.60659941,3.2e-05,2]
[407986742,1772973426656,-314.5897655,2.161e-05,2]
[407986743,1772973426679,-1685.4102345,2.183e-05,2]
[407986744,1772973428355,-2000.0,2.183e-05,2]
[407986745,1772973428661,-1314.5897655,2.183e-05,2]
[407986746,1772973428684,-685.4102345,2.204e-05,2]
[407986747,1772973429068,-465.5897655,2.204e-05,2]
[407986748,1772973429091,-300.0,2.204e-05,2]
[407986749,1772973429114,-1234.4102345,2.205e-05,2]
[407986750,1772973429599,-300.0,2.226e-05,2]
[407986751,1772973429621,-300.0,2.226e-05,2]
[407986752,1772973429644,-1400.0,2.227e-05,2]
[407986753,1772973430039,-2000.0,2.227e-05,2]
[407986754,1772973430446,-2000.0,2.227e-05,2]
[407986755,1772973430912,-2000.0,2.227e-05,2]
[407986756,1772973431329,-2000.0,2.182e-05,2]
[407986757,1772973432536,-1126.81547854,2.182e-05,2]
[407986758,1772973432564,-586.3884061,2.227e-05,2]
[407986759,1772973432591,-286.79611536,2.271e-05,2]
[407986760,1772973432684,-13.20388464,2.271e-05,2]
[407986761,1772973432712,-300.0,2.271e-05,2]
[407986762,1772973432738,-300.0,2.271e-05,2]
[407986763,1772973432763,-300.0,2.271e-05,2]
[407986764,1772973432792,-300.0,2.271e-05,2]
[407986765,1772973432822,-300.0,2.271e-05,2]
[407986766,1772973432852,-300.0,2.271e-05,2]
[407986767,1772973432882,-186.79611536,2.271e-05,2]
[407986768,1772973432927,-113.20388464,2.271e-05,2]
[407986769,1772973432954,-300.0,2.271e-05,2]
[407986770,1772973433376,-300.0,2.271e-05,2]
[407986771,1772973433560,-300.0,2.271e-05,2]
[407986772,1772973433582,-300.0,2.271e-05,2]
[407986773,1772973433603,-300.0,2.271e-05,2]
[407986774,1772973433624,-300.0,2.271e-05,2]
[407986775,1772973433648,-86.79611536,2.271e-05,2]
[407986776,1772973433684,-213.20388464,2.271e-05,2]
[407986777,1772973433706,-600.0,2.315e-05,2]
[407986778,1772973433726,-394.0,2.424e-05,2]
[407986779,1772973438773,792.79611536,2.5e-05,2]
[407986780,1772973438795,2000.0,2.5e-05,2]
[407986781,1772973438816,2000.0,2.5e-05,2]
[407986782,1772973438838,207.20388464,2.5e-05,2]
[407986784,1772973454592,-720.0,2.547e-05,2]
[407986809,1772974220696,167.966542,1.822e-05,2]
[407986810,1772974221195,167.966542,1.822e-05,41]
[407986811,1772974221221,167.966542,1.822e-05,80]
[407986812,1772974221311,167.966542,1.822e-05,119]
[407986844,1772974232286,-1071.458,2.305e-05,2]
[407986846,1772974232298,-390.96586066,2.305e-05,2]
[407986849,1772974232309,-327.0,2.305e-05,2]
[407987023,1772974238572,-3210.57613934,2.305e-05,2]
[407987025,1772974238582,-824.59876137,2.328e-05,2]
[407987027,1772974238594,-420.74624772,2.328e-05,2]
[407987029,1772974238603,-270.6124408,2.34e-05,2]
[407987031,1772974238614,-3444.81151105,2.352e-05,2]
[407987543,1772974243482,-920.34923436,2.328e-05,2]
[407987556,1772974243593,-4079.65076564,2.328e-05,2]
[407987558,1772974243602,-1555.18848895,2.352e-05,2]
[407987560,1772974243613,-300.0,2.375e-05,2]
[407987562,1772974243622,-300.0,2.651e-05,2]
[407987564,1772974243631,-300.0,2.651e-05,2]
[407987566,1772974243640,-300.0,2.651e-05,2]
[407987568,1772974243651,-300.0,2.651e-05,2]
[407987570,1772974243660,-300.0,2.651e-05,2]
[407987572,1772974243669,-300.0,2.651e-05,2]
[407987574,1772974243678,-300.0,2.651e-05,2]
[407987576,1772974243687,-300.0,2.651e-05,2]
[407987578,1772974243696,-300.0,2.651e-05,2]
[407987581,1772974243705,-300.0,2.651e-05,2]
[407987583,1772974243715,-300.0,2.651e-05,2]
[407987585,1772974243724,-300.0,2.651e-05,2]
[407987587,1772974243733,-300.0,2.651e-05,2]
[407987589,1772974243742,-13.72654949,2.651e-05,2]
[407987591,1772974243754,-286.27345051,2.651e-05,2]
[407987593,1772974243763,-300.0,2.651e-05,2]
[407987595,1772974243772,-1051.7441272,2.777e-05,2]
[407987597,1772974243781,-250.0,3.135e-05,2]
[407987599,1772974243793,-5679.24852178,3.168e-05,2]
[407987603,1772974243814,-512.77059311,3.168e-05,2]
[407987625,1772974244171,-233.88710315,3.168e-05,2]
[407987627,1772974244184,-1574.09378196,3.168e-05,2]
[407987629,1772974244193,-500.0,3.173e-05,2]
[407987631,1772974244203,-500.0,3.173e-05,2]
[407987633,1772974244212,-500.0,3.173e-05,2]
[407987635,1772974244222,-500.0,3.173e-05,2]
[407987637,1772974244231,-500.0,3.173e-05,2]
[407987639,1772974244241,-500.0,3.173e-05,2]
[407987641,1772974244250,-500.0,3.173e-05,2]
[407987644,1772974244260,-500.0,3.173e-05,2]
[407987645,1772974244269,-500.0,3.173e-05,2]
[407987648,1772974244278,-500.0,3.173e-05,2]
[407987650,1772974244287,-500.0,3.173e-05,2]
[407987651,1772974244297,-500.0,3.173e-05,2]
[407987654,1772974244307,-500.0,3.173e-05,2]
[407987655,1772974244315,-500.0,3.173e-05,2]
[407987658,1772974244325,-500.0,3.173e-05,2]
[407987659,1772974244334,-565.99247635,3.173e-05,2]
[407987661,1772974244343,-500.0,3.173e-05,2]
[407987663,1772974244352,-500.0,3.173e-05,2]
[407987666,1772974244362,-500.0,3.173e-05,2]
[407987668,1772974244372,-500.0,3.173e-05,2]
[407987670,1772974244383,-500.0,3.173e-05,2]
[407987672,1772974244392,-500.0,3.173e-05,2]
[407987674,1772974244401,-500.0,3.173e-05,2]
[407987676,1772974244411,-500.0,3.173e-05,2]
[407987677,1772974244420,-47.01520428,3.173e-05,2]
[407987702,1772974246464,-452.98479572,3.173e-05,2]
[407987703,1772974246474,-500.0,3.173e-05,2]
[407987704,1772974246483,-500.0,3.173e-05,2]
[407987705,1772974246493,-500.0,3.173e-05,2]
[407987706,1772974246502,-500.0,3.173e-05,2]
[407987707,1772974246511,-500.0,3.173e-05,2]
[407987708,1772974246520,-155499.27831941,3.2e-05,2]
[407987709,1772974246532,-9324.2403483,3.2e-05,2]
[407987710,1772974246574,-12624.38250078,3.2e-05,2]
[407987713,1772974824109,-179.27378107,2.983e-05,2]
[407987736,1772975102799,221.8642993,1.868e-05,2]
[407987742,1772975263876,1335.65337,1.947e-05,2]
[407987744,1772975398314,5000.0,2.001e-05,2]
[407987745,1772975413750,5000.0,2.001e-05,2]
[407987746,1772975422084,5000.0,2.001e-05,2]
[407987811,1772975436451,5000.0,2.001e-05,2]
[407987838,1772975438628,-1335.65337,2.028e-05,2]
[407987840,1772975438637,-265.20019199,2.069e-05,2]
[407987842,1772975438646,-1335.65337,2.11e-05,2]
[407987844,1772975438656,-314.6745036,2.179e-05,2]
[407987846,1772975438665,-300.0,2.191e-05,2]
[407987848,1772975438674,-300.0,2.191e-05,2]
[407987850,1772975438683,-300.0,2.191e-05,2]
[407987852,1772975438691,-1335.65337,2.192e-05,2]
[407987854,1772975438700,-300.0,2.221e-05,2]
[407987856,1772975438710,-1335.65337,2.274e-05,2]
[407987858,1772975438719,-1335.65337,2.356e-05,2]
[407987860,1772975438728,-1741.0727879,2.74e-05,2]
[407987862,1772975438736,-500.0,3.173e-05,2]
[407987864,1772975438746,-500.0,3.173e-05,2]
[407987866,1772975438755,-500.0,3.173e-05,2]
[407987868,1772975438764,-500.0,3.173e-05,2]
[407987870,1772975438774,-500.0,3.173e-05,2]